[Event "Minior-SM 2025"]
[Site "Uppsala, Sweden"]
[Date "2025.07.05"]
[Round "8.2"]
[White "Lang Sohl, Benjamin"]
[Black "Andreasson, Leo"]
[Result "0-1"]
[TimeControl "90 min for 40 move + 30 min with an increment of 30 sec starting move 1"]
[WhiteFideId "1790250"]
[BlackFideId "1768980"]
[WhiteElo "1552"]
[BlackElo "1636"]

1. e4 {[%clk 01:30:59]} c6 {[%clk 01:30:51]} {[%emt 00:00:09]} 2. d4 {[%clk
01:31:00]} {[%emt 00:00:29]} d5 {[%clk 01:31:14]} {[%emt 00:00:08]} 3. e5
{[%clk 01:30:50]} {[%emt 00:00:39]} Bf5 {[%clk 01:31:24]} {[%emt 00:00:20]} 4.
Nf3 {[%clk 01:30:59]} {[%emt 00:00:20]} e6 {[%clk 01:30:58]} {[%emt 00:00:58]}
5. Be2 {[%clk 01:31:03]} {[%emt 00:00:25]} c5 {[%clk 01:26:35]} {[%emt
00:04:54]} 6. Be3 {[%clk 01:30:27]} {[%emt 00:01:06]} Nd7 {[%clk 01:21:54]}
{[%emt 00:05:11]} 7. c3 {[%clk 01:27:52]} {[%emt 00:03:05]} cxd4 {[%clk
01:14:21]} {[%emt 00:08:03]} 8. cxd4 {[%clk 01:25:14]} {[%emt 00:03:07]} Bb4+
{[%clk 01:12:20]} {[%emt 00:02:32]} 9. Nbd2 {[%clk 01:18:53]} {[%emt 00:06:50]}
Ne7 {[%clk 01:02:27]} {[%emt 00:10:23]} 10. O-O {[%clk 01:14:00]} {[%emt
00:05:21]} Nc6 {[%clk 01:02:08]} {[%emt 00:00:51]} 11. a3 {[%clk 01:08:51]}
{[%emt 00:05:40]} Be7 {[%clk 01:01:33]} {[%emt 00:01:05]} 12. Rc1 {[%clk
01:03:23]} {[%emt 00:05:58]} O-O {[%clk 00:59:58]} {[%emt 00:02:04]} 13. Re1
{[%clk 00:59:03]} {[%emt 00:04:49]} Nb6 {[%clk 00:54:32]} {[%emt 00:05:57]} 14.
Nf1 {[%clk 00:56:33]} {[%emt 00:03:00]} Rc8 {[%clk 00:50:09]} {[%emt 00:04:53]}
15. Ng3 {[%clk 00:55:12]} {[%emt 00:01:52]} Bg6 {[%clk 00:50:17]} {[%emt
00:00:21]} 16. Bd3 {[%clk 00:49:33]} {[%emt 00:06:08]} Bxd3 {[%clk 00:46:27]}
{[%emt 00:04:20]} 17. Qxd3 {[%clk 00:49:16]} {[%emt 00:00:47]} Nc4 {[%clk
00:46:10]} {[%emt 00:00:47]} 18. Rc2 {[%clk 00:44:34]} {[%emt 00:05:12]} b5
{[%clk 00:42:59]} {[%emt 00:03:40]} 19. Rec1 {[%clk 00:37:27]} {[%emt
00:07:37]} Qd7 {[%clk 00:23:10]} {[%emt 00:20:19]} 20. Nd2 {[%clk 00:30:26]}
{[%emt 00:07:31]} N6a5 {[%clk 00:20:32]} {[%emt 00:03:08]} 21. b4 {[%clk
00:28:44]} {[%emt 00:02:12]} Nxe3 {[%clk 00:12:34]} {[%emt 00:08:28]} 22. Rxc8
{[%clk 00:25:33]} {[%emt 00:03:41]} Rxc8 {[%clk 00:12:48]} {[%emt 00:00:17]} 23.
Rxc8+ {[%clk 00:24:39]} {[%emt 00:01:24]} Qxc8 {[%clk 00:13:13]} {[%emt
00:00:05]} 24. fxe3 {[%clk 00:23:32]} {[%emt 00:01:37]} Qc1+ {[%clk 00:12:51]}
{[%emt 00:00:52]} 25. Ndf1 {[%clk 00:23:32]} {[%emt 00:00:30]} Nc4 {[%clk
00:12:43]} {[%emt 00:00:37]} 26. e4 {[%clk 00:19:09]} {[%emt 00:04:53]} Qxa3
{[%clk 00:11:55]} {[%emt 00:01:19]} 27. Qe2 {[%clk 00:18:41]} {[%emt 00:00:58]}
Qxb4 {[%clk 00:10:02]} {[%emt 00:02:23]} 28. exd5 {[%clk 00:18:44]} {[%emt
00:00:27]} exd5 {[%clk 00:09:54]} {[%emt 00:00:38]} 29. e6 {[%clk 00:18:51]}
{[%emt 00:00:24]} Nd6 {[%clk 00:06:07]} {[%emt 00:04:17]} 30. Ne3 {[%clk
00:18:24]} {[%emt 00:00:56]} Qxd4 {[%clk 00:05:54]} {[%emt 00:00:43]} 31. exf7+
{[%clk 00:18:17]} {[%emt 00:00:38]} Kxf7 {[%clk 00:04:53]} {[%emt 00:01:31]} 32.
Qf2+ {[%clk 00:18:05]} {[%emt 00:00:42]} Kg8 {[%clk 00:04:44]} {[%emt
00:00:38]} 33. Nh5 {[%clk 00:17:17]} {[%emt 00:01:18]} Ne4 {[%clk 00:04:03]}
{[%emt 00:01:11]} 34. Qf3 {[%clk 00:16:51]} {[%emt 00:00:56]} Qa1+ {[%clk
00:04:16]} {[%emt 00:00:18]} 35. Nf1 {[%clk 00:17:09]} {[%emt 00:00:11]} Bc5+
{[%clk 00:04:23]} {[%emt 00:00:23]} 36. Kh1 {[%clk 00:17:30]} {[%emt 00:00:09]}
Qd4 {[%clk 00:03:27]} {[%emt 00:01:24]} 0-1

[Event "Minior-SM 2025"]
[Site "Uppsala, Sweden"]
[Date "2025.07.05"]
[Round "8.3"]
[White "Modig, Ville"]
[Black "Thamarai, Yohan"]
[Result "0-1"]
[TimeControl "90 min for 40 move + 30 min with an increment of 30 sec starting move 1"]
[WhiteFideId "1777858"]
[BlackFideId "1773011"]
[WhiteElo "1585"]
[BlackElo "1761"]

1. e4 {[%clk 01:30:58]} {[%emt 00:00:01]} c6 {[%clk 01:30:49]} {[%emt
00:00:11]} 2. d4 {[%clk 01:31:18]} {[%emt 00:00:10]} d5 {[%clk 01:31:14]}
{[%emt 00:00:05]} 3. exd5 {[%clk 01:31:44]} {[%emt 00:00:04]} cxd5 {[%clk
01:31:38]} {[%emt 00:00:06]} 4. Nf3 {[%clk 01:32:04]} {[%emt 00:00:10]} Nc6
{[%clk 01:31:58]} {[%emt 00:00:10]} 5. Bd3 {[%clk 01:32:16]} {[%emt 00:00:18]}
Nf6 {[%clk 01:32:08]} {[%emt 00:00:19]} 6. Bf4 {[%clk 01:32:22]} {[%emt
00:00:23]} Bg4 {[%clk 01:30:32]} {[%emt 00:02:08]} 7. c3 {[%clk 01:32:28]}
{[%emt 00:00:23]} e6 {[%clk 01:30:53]} {[%emt 00:00:10]} 8. Nbd2 {[%clk
01:32:35]} {[%emt 00:00:22]} Bd6 {[%clk 01:31:08]} {[%emt 00:00:15]} 9. Bxd6
{[%clk 01:32:37]} {[%emt 00:00:27]} Qxd6 {[%clk 01:31:31]} {[%emt 00:00:08]} 10.
O-O {[%clk 01:32:50]} {[%emt 00:00:16]} O-O {[%clk 01:31:48]} {[%emt 00:00:14]}
11. h3 {[%clk 01:32:43]} {[%emt 00:00:37]} Bh5 {[%clk 01:32:03]} {[%emt
00:00:15]} 12. Rc1 {[%clk 01:31:54]} {[%emt 00:01:19]} Rfe8 {[%clk 01:28:51]}
{[%emt 00:03:40]} 13. Re1 {[%clk 01:30:25]} {[%emt 00:02:01]} h6 {[%clk
01:27:01]} {[%emt 00:02:20]} 14. Nf1 {[%clk 01:29:26]} {[%emt 00:01:29]} e5
{[%clk 01:26:48]} {[%emt 00:00:44]} 15. dxe5 {[%clk 01:28:57]} {[%emt
00:01:00]} Nxe5 {[%clk 01:27:08]} {[%emt 00:00:10]} 16. N1h2 {[%clk 01:27:36]}
{[%emt 00:01:50]} Nxf3+ {[%clk 01:27:12]} {[%emt 00:00:27]} 17. Nxf3 {[%clk
01:26:54]} {[%emt 00:01:11]} Rxe1+ {[%clk 01:27:32]} {[%emt 00:00:11]} 18. Qxe1
{[%clk 01:27:09]} {[%emt 00:00:14]} Bxf3 {[%clk 01:27:56]} {[%emt 00:00:05]} 19.
gxf3 {[%clk 01:27:29]} {[%emt 00:00:11]} Re8 {[%clk 01:28:19]} {[%emt
00:00:07]} 20. Qd2 {[%clk 01:25:50]} {[%emt 00:02:09]} Qe5 {[%clk 01:28:29]}
{[%emt 00:00:19]} 21. Bf1 {[%clk 01:22:47]} {[%emt 00:03:33]} Nh5 {[%clk
01:27:54]} {[%emt 00:01:06]} 22. Qd4 {[%clk 01:21:41]} {[%emt 00:01:36]} Qg5+
{[%clk 01:28:02]} {[%emt 00:00:22]} 23. Qg4 {[%clk 01:20:50]} {[%emt 00:01:21]}
Qxc1 {[%clk 01:28:25]} {[%emt 00:00:07]} 24. Qxh5 {[%clk 01:21:00]} {[%emt
00:00:18]} Re1 {[%clk 01:28:49]} {[%emt 00:00:08]} 25. Kh2 {[%clk 01:18:18]}
{[%emt 00:03:12]} Rxf1 {[%clk 01:29:03]} {[%emt 00:00:16]} 26. Kg2 {[%clk
01:16:06]} {[%emt 00:02:42]} Rg1+ {[%clk 01:29:28]} {[%emt 00:00:06]} 27. Kh2
{[%emt 00:00:43]} Rh1+ 28. Kg2 {[%emt 00:00:06]} Rg1+ 29. Kh2 Qf1 {[%emt
00:00:02]} 0-1

[Event "Minior-SM 2025"]
[Site "Uppsala, Sweden"]
[Date "2025.07.05"]
[Round "8.4"]
[White "Gohlin Skoglund, Dorian"]
[Black "Cui, Ian"]
[Result "1/2-1/2"]
[TimeControl "90 min for 40 move + 30 min with an increment of 30 sec starting move 1"]
[WhiteFideId "1784269"]
[BlackFideId "1793926"]
[WhiteElo "1687"]
[BlackElo "1706"]

1. e4 {[%clk 01:30:58]} {[%emt 00:00:01]} e5 {[%clk 01:30:50]} {[%emt
00:00:10]} 2. Nf3 {[%clk 01:31:23]} {[%emt 00:00:05]} Nc6 {[%clk 01:31:12]}
{[%emt 00:00:08]} 3. c3 {[%clk 01:31:48]} {[%emt 00:00:05]} d5 {[%clk
01:31:15]} {[%emt 00:00:26]} 4. Qa4 {[%clk 01:32:08]} {[%emt 00:00:11]} f6
{[%clk 01:28:43]} {[%emt 00:03:02]} 5. d3 {[%clk 01:31:48]} {[%emt 00:00:49]}
dxe4 {[%clk 01:28:17]} {[%emt 00:00:56]} 6. dxe4 {[%clk 01:29:48]} {[%emt
00:02:31]} Bd7 {[%clk 01:27:57]} {[%emt 00:00:50]} 7. Qc2 {[%clk 01:23:04]}
{[%emt 00:07:14]} Bd6 {[%clk 01:27:23]} {[%emt 00:01:05]} 8. Be2 {[%clk
01:22:46]} {[%emt 00:00:47]} Nge7 {[%clk 01:27:00]} {[%emt 00:00:52]} 9. O-O
{[%clk 01:22:11]} {[%emt 00:01:06]} O-O {[%clk 01:26:41]} {[%emt 00:00:49]} 10.
Be3 {[%clk 01:21:32]} {[%emt 00:01:09]} f5 {[%clk 01:25:35]} {[%emt 00:01:37]}
11. Nbd2 {[%clk 01:17:16]} {[%emt 00:04:46]} f4 {[%clk 01:25:36]} {[%emt
00:00:28]} 12. Ng5 {[%clk 01:12:48]} {[%emt 00:04:58]} h6 {[%clk 01:25:12]}
{[%emt 00:00:54]} 13. Qb3+ {[%clk 01:12:35]} {[%emt 00:00:44]} Kh8 {[%clk
01:24:51]} {[%emt 00:00:50]} 14. Nf7+ {[%clk 01:12:34]} {[%emt 00:00:31]} Rxf7
{[%clk 01:25:14]} {[%emt 00:00:08]} 15. Qxf7 {[%clk 01:12:28]} {[%emt
00:00:36]} 1/2-1/2

[Event "Minior-SM 2025"]
[Site "Uppsala, Sweden"]
[Date "2025.07.06"]
[Round "9.2"]
[White "Thamarai, Yohan"]
[Black "Leon, David"]
[Result "0-1"]
[TimeControl "90 min for 40 move + 30 min with an increment of 30 sec starting move 1"]
[WhiteFideId "1773011"]
[BlackFideId "1785338"]
[WhiteElo "1761"]
[BlackElo "1734"]

1. e4 {[%clk 01:30:52]} {[%emt 00:00:07]} e6 {[%clk 01:30:46]} {[%emt
00:00:15]} 2. d4 {[%clk 01:31:10]} {[%emt 00:00:11]} d5 {[%clk 01:31:07]}
{[%emt 00:00:10]} 3. e5 {[%clk 01:31:28]} {[%emt 00:00:12]} c5 {[%clk
01:31:18]} {[%emt 00:00:19]} 4. c3 {[%clk 01:31:45]} {[%emt 00:00:12]} Nc6
{[%clk 01:31:36]} {[%emt 00:00:12]} 5. Nf3 {[%clk 01:32:08]} {[%emt 00:00:07]}
Qb6 {[%clk 01:28:30]} {[%emt 00:03:37]} 6. a3 {[%clk 01:32:10]} {[%emt
00:00:28]} Bd7 {[%clk 01:25:21]} {[%emt 00:03:39]} 7. b4 {[%clk 01:31:59]}
{[%emt 00:00:41]} cxd4 {[%clk 01:20:58]} {[%emt 00:04:53]} 8. cxd4 {[%clk
01:31:18]} {[%emt 00:01:11]} Nge7 {[%clk 01:18:47]} {[%emt 00:02:40]} 9. Nc3
{[%clk 01:27:32]} {[%emt 00:04:16]} Rc8 {[%clk 01:17:05]} {[%emt 00:02:13]} 10.
Bb2 {[%clk 01:26:29]} {[%emt 00:01:33]} Nf5 {[%clk 01:03:03]} {[%emt 00:14:31]}
11. Na4 {[%clk 01:23:20]} {[%emt 00:03:39]} Qd8 {[%clk 01:02:18]} {[%emt
00:01:15]} 12. Bd3 {[%clk 01:18:59]} {[%emt 00:04:52]} g6 {[%clk 00:42:42]}
{[%emt 00:20:05]} 13. h4 {[%clk 01:06:57]} {[%emt 00:12:33]} h5 {[%clk
00:37:55]} {[%emt 00:05:16]} 14. Bxf5 {[%clk 01:05:12]} {[%emt 00:02:15]} exf5
{[%clk 00:36:57]} {[%emt 00:01:28]} 15. Ng5 {[%clk 01:05:12]} {[%emt 00:00:30]}
Be7 {[%clk 00:32:56]} {[%emt 00:04:32]} 16. Nc5 {[%clk 01:02:14]} {[%emt
00:03:28]} b6 {[%clk 00:28:05]} {[%emt 00:05:20]} 17. e6 {[%clk 01:01:17]}
{[%emt 00:01:27]} Bxe6 {[%clk 00:22:18]} {[%emt 00:06:17]} 18. Ncxe6 {[%clk
01:01:36]} {[%emt 00:00:12]} fxe6 {[%clk 00:22:16]} {[%emt 00:00:32]} 19. Nxe6
{[%clk 01:01:51]} {[%emt 00:00:15]} Qd6 {[%clk 00:21:41]} {[%emt 00:01:04]} 20.
Qe2 {[%clk 01:02:08]} {[%emt 00:00:13]} Kf7 {[%clk 00:21:16]} {[%emt 00:00:55]}
21. Nc5 {[%clk 01:01:41]} {[%emt 00:00:57]} Bf6 {[%clk 00:16:24]} {[%emt
00:05:23]} 22. Nd3 {[%clk 01:01:37]} {[%emt 00:00:34]} Rhe8 {[%clk 00:16:09]}
{[%emt 00:00:45]} 23. Ne5+ {[%clk 01:01:55]} {[%emt 00:00:12]} Nxe5 {[%clk
00:13:50]} {[%emt 00:02:49]} 24. dxe5 {[%clk 01:02:20]} {[%emt 00:00:06]} Bxe5
{[%clk 00:14:07]} {[%emt 00:00:12]} 25. Kf1 {[%clk 01:02:40]} {[%emt 00:00:10]}
Bc3 {[%clk 00:10:30]} {[%emt 00:04:07]} 26. Qc2 {[%clk 01:02:29]} {[%emt
00:00:42]} Bxb4 {[%clk 00:09:34]} {[%emt 00:01:25]} 27. Qa4 {[%clk 01:01:19]}
{[%emt 00:01:40]} Ba5 {[%clk 00:08:49]} {[%emt 00:01:15]} 28. Qd4 {[%clk
01:01:28]} {[%emt 00:00:22]} Rg8 {[%clk 00:08:26]} {[%emt 00:00:53]} 29. Rh3
{[%clk 01:00:52]} {[%emt 00:01:06]} Rc4 {[%clk 00:08:13]} {[%emt 00:00:43]} 30.
Qe3 {[%clk 01:00:37]} {[%emt 00:00:45]} Qf4 {[%clk 00:07:10]} {[%emt 00:01:32]}
31. Qd3 {[%clk 01:00:07]} {[%emt 00:00:59]} Qe4 {[%clk 00:07:08]} {[%emt
00:00:33]} 32. Rd1 {[%clk 01:00:18]} {[%emt 00:00:19]} Re8 {[%clk 00:05:45]}
{[%emt 00:01:54]} 33. Re3 {[%clk 01:00:33]} {[%emt 00:00:15]} Qxd3+ {[%clk
00:05:57]} {[%emt 00:00:18]} 34. Rexd3 {[%clk 01:00:58]} {[%emt 00:00:05]} Rc2
{[%clk 00:05:26]} {[%emt 00:01:01]} 35. Ba1 {[%clk 01:00:39]} {[%emt 00:00:49]}
Ree2 {[%clk 00:05:26]} {[%emt 00:00:29]} 36. Bd4 {[%clk 01:00:12]} {[%emt
00:00:56]} Ke6 {[%clk 00:04:50]} {[%emt 00:01:07]} 37. Be3 {[%clk 01:00:34]}
{[%emt 00:00:08]} f4 {[%clk 00:04:43]} {[%emt 00:00:37]} 38. Bd4 {[%clk
01:00:15]} {[%emt 00:00:50]} Kf5 {[%clk 00:04:48]} {[%emt 00:00:24]} 39. f3
{[%clk 00:58:27]} {[%emt 00:02:19]} Rxg2 {[%clk 00:04:40]} {[%emt 00:00:38]} 40.
Bg1 {[%clk 00:57:20]} {[%emt 00:01:37]} Rgd2 {[%clk 00:03:11]} {[%emt
00:01:58]} 41. Rxd5+ {[%clk 00:57:19]} {[%emt 00:00:31]} Rxd5 {[%clk 00:03:22]}
{[%emt 00:00:19]} 42. Rxd5+ {[%clk 00:57:44]} {[%emt 00:00:06]} Ke6 {[%clk
00:03:30]} {[%emt 00:00:21]} 43. Rg5 {[%clk 00:57:57]} {[%emt 00:00:17]} Kf7
{[%clk 00:28:51]} {[%emt 00:05:09]} 44. Rd5 {[%clk 01:27:33]} {[%emt 00:00:54]}
Rd2 {[%clk 00:28:28]} {[%emt 00:00:53]} 45. Rxd2 {[%clk 01:27:29]} {[%emt
00:00:35]} Bxd2 {[%clk 00:28:50]} {[%emt 00:00:07]} 46. Ke2 {[%clk 01:27:50]}
{[%emt 00:00:09]} Be3 {[%clk 00:28:28]} {[%emt 00:00:53]} 47. Bh2 {[%clk
01:23:33]} {[%emt 00:04:47]} Ke6 {[%clk 00:27:20]} {[%emt 00:01:37]} 48. Kd3
{[%clk 01:18:07]} {[%emt 00:05:57]} Kd5 {[%clk 00:27:41]} {[%emt 00:00:09]} 49.
Kc3 {[%clk 01:18:21]} {[%emt 00:00:17]} Kc5 {[%clk 00:27:31]} {[%emt 00:00:39]}
50. Kd3 {[%clk 01:17:36]} {[%emt 00:01:16]} Kb5 {[%clk 00:26:47]} {[%emt
00:01:13]} 51. Ke4 {[%clk 01:17:55]} {[%emt 00:00:12]} Ka4 {[%clk 00:24:49]}
{[%emt 00:02:28]} 52. Bxf4 {[%clk 01:18:11]} {[%emt 00:00:14]} Bxf4 {[%clk
00:25:09]} {[%emt 00:00:09]} 53. Kxf4 {[%clk 01:18:37]} {[%emt 00:00:04]} Kxa3
{[%clk 00:25:25]} {[%emt 00:00:13]} 54. Kg5 {[%clk 01:19:01]} {[%emt 00:00:07]}
b5 {[%emt 00:00:17]} 55. Kxg6 {[%clk 01:19:23]} {[%emt 00:00:07]} b4 {[%clk
00:26:04]} {[%emt 00:00:05]} 56. f4 {[%clk 01:19:30]} {[%emt 00:00:23]} b3
{[%clk 00:26:27]} {[%emt 00:00:07]} 57. f5 {[%clk 01:19:57]} {[%emt 00:00:03]}
b2 {[%clk 00:26:49]} {[%emt 00:00:07]} 58. f6 {[%clk 01:20:24]} {[%emt
00:00:04]} b1=Q+ {[%clk 00:27:11]} {[%emt 00:00:07]} 59. Kg7 {[%clk 01:20:41]}
{[%emt 00:00:14]} Qg1+ {[%clk 00:27:16]} {[%emt 00:00:25]} 60. Kh7 {[%clk
01:21:01]} {[%emt 00:00:10]} Qf2 {[%clk 00:25:54]} {[%emt 00:01:51]} 61. Kg7
{[%clk 01:21:26]} {[%emt 00:00:06]} Qxh4 {[%clk 00:25:45]} {[%emt 00:00:37]} 62.
f7 {[%clk 01:21:52]} {[%emt 00:00:05]} Qf4 {[%clk 00:25:56]} {[%emt 00:00:19]}
0-1

[Event "Minior-SM 2025"]
[Site "Uppsala, Sweden"]
[Date "2025.07.06"]
[Round "9.3"]
[White "Dahlin, Emil"]
[Black "Hjalte, Eric"]
[Result "1/2-1/2"]
[TimeControl "90 min for 40 move + 30 min with an increment of 30 sec starting move 1"]
[WhiteFideId "1771035"]
[BlackFideId "1780344"]
[WhiteElo "1657"]
[BlackElo "1512"]

1. e4 {[%clk 01:30:57]} {[%emt 00:00:01]} c5 {[%clk 01:30:36]} {[%emt
00:00:25]} 2. Nf3 {[%clk 01:31:19]} {[%emt 00:00:08]} Nc6 {[%clk 01:30:55]}
{[%emt 00:00:11]} 3. d4 {[%clk 01:31:27]} {[%emt 00:00:22]} cxd4 {[%clk
01:31:11]} {[%emt 00:00:15]} 4. Nxd4 {[%clk 01:31:49]} {[%emt 00:00:07]} e5
{[%clk 01:31:34]} {[%emt 00:00:07]} 5. Nb5 {[%clk 01:32:00]} {[%emt 00:00:19]}
d6 {[%clk 01:31:56]} {[%emt 00:00:08]} 6. c4 {[%clk 01:25:53]} {[%emt
00:06:36]} Be7 {[%clk 01:31:44]} {[%emt 00:00:42]} 7. N1c3 {[%clk 01:22:42]}
{[%emt 00:03:42]} a6 {[%clk 01:31:58]} {[%emt 00:00:16]} 8. Na3 {[%clk
01:21:13]} {[%emt 00:01:58]} Nf6 {[%clk 01:32:01]} {[%emt 00:00:27]} 9. Be2
{[%clk 01:17:19]} {[%emt 00:04:25]} O-O {[%clk 01:29:24]} {[%emt 00:03:08]} 10.
O-O {[%clk 01:15:28]} {[%emt 00:02:20]} Be6 {[%clk 01:27:21]} {[%emt 00:02:33]}
11. Be3 {[%clk 01:10:46]} {[%emt 00:05:12]} Rc8 {[%clk 01:26:30]} {[%emt
00:01:19]} 12. Nab1 {[%clk 01:00:47]} {[%emt 00:10:31]} Nd7 {[%clk 01:20:29]}
{[%emt 00:06:31]} 13. Nd5 {[%clk 00:53:58]} {[%emt 00:07:18]} Nc5 {[%clk
01:20:20]} {[%emt 00:00:40]} 14. Nxe7+ {[%clk 00:50:22]} {[%emt 00:04:06]} Qxe7
{[%clk 01:19:52]} {[%emt 00:00:58]} 15. f3 {[%clk 00:43:30]} {[%emt 00:07:22]}
f5 {[%clk 01:18:38]} {[%emt 00:01:44]} 16. exf5 {[%clk 00:36:52]} {[%emt
00:07:08]} Rxf5 {[%clk 01:13:39]} {[%emt 00:05:28]} 17. Nc3 {[%clk 00:33:58]}
{[%emt 00:03:24]} Rd8 {[%clk 01:11:42]} {[%emt 00:02:28]} 18. Ne4 {[%clk
00:32:05]} {[%emt 00:02:23]} Nxe4 {[%clk 00:58:02]} {[%emt 00:14:11]} 19. fxe4
{[%clk 00:31:58]} {[%emt 00:00:36]} Rxf1+ {[%clk 00:58:12]} {[%emt 00:00:21]}
20. Bxf1 {[%clk 00:29:17]} {[%emt 00:03:10]} Qh4 {[%clk 00:57:08]} {[%emt
00:01:34]} 21. Bd3 {[%clk 00:23:36]} {[%emt 00:06:11]} Nb4 {[%clk 00:55:00]}
{[%emt 00:02:37]} 22. a3 {[%clk 00:22:50]} {[%emt 00:01:17]} Nxd3 {[%clk
00:55:02]} {[%emt 00:00:28]} 23. Qxd3 {[%clk 00:23:09]} {[%emt 00:00:11]} Qe7
{[%clk 00:55:01]} {[%emt 00:00:31]} 24. Rd1 {[%clk 00:21:21]} {[%emt 00:02:18]}
Qc7 {[%clk 00:54:59]} {[%emt 00:00:32]} 25. b3 {[%clk 00:20:40]} {[%emt
00:01:11]} Qa5 {[%clk 00:55:00]} {[%emt 00:00:29]} 26. b4 {[%clk 00:17:26]}
{[%emt 00:03:44]} Qc7 {[%clk 00:54:56]} {[%emt 00:00:34]} 27. c5 {[%clk
00:15:18]} {[%emt 00:02:38]} d5 {[%clk 00:54:48]} {[%emt 00:00:38]} 28. Qb3
{[%clk 00:13:21]} {[%emt 00:02:27]} Qc6 {[%clk 00:52:08]} {[%emt 00:03:10]} 29.
Qd3 {[%clk 00:10:41]} {[%emt 00:03:10]} Rd7 {[%clk 00:51:19]} {[%emt 00:01:18]}
30. exd5 {[%clk 00:08:40]} {[%emt 00:02:32]} Rxd5 {[%clk 00:50:25]} {[%emt
00:01:24]} 31. Qe2 {[%clk 00:08:09]} {[%emt 00:01:01]} Rxd1+ {[%clk 00:49:51]}
{[%emt 00:01:04]} 32. Qxd1 {[%clk 00:08:32]} {[%emt 00:00:07]} Qd7 {[%clk
00:49:44]} {[%emt 00:00:36]} 33. Qxd7 {[%clk 00:04:31]} {[%emt 00:04:32]} Bxd7
{[%clk 00:49:55]} {[%emt 00:00:19]} 34. Kf2 {[%clk 00:04:32]} {[%emt 00:00:27]}
Kf7 {[%clk 00:49:52]} {[%emt 00:00:34]} 35. g3 {[%clk 00:04:01]} {[%emt
00:01:01]} Kf6 {[%clk 00:49:35]} {[%emt 00:00:47]} 36. Bd2 {[%clk 00:02:02]}
{[%emt 00:02:30]} Ke6 {[%clk 00:49:05]} {[%emt 00:00:59]} 37. Ke3 {[%clk
00:01:57]} {[%emt 00:00:36]} Kd5 {[%clk 00:46:56]} {[%emt 00:02:40]} 38. Bc3
{[%clk 00:01:15]} {[%emt 00:01:11]} g6 {[%clk 00:46:00]} {[%emt 00:01:26]} 39.
Bb2 {[%clk 00:00:58]} {[%emt 00:00:46]} Bf5 {[%clk 00:44:44]} {[%emt 00:01:35]}
40. Ba1 {[%clk 00:00:38]} {[%emt 00:01:01]} Bd7 {[%clk 00:44:09]} {[%emt
00:01:06]} 41. Bb2 {[%clk 00:28:47]} {[%emt 00:02:21]} Bf5 {[%clk 01:14:20]}
{[%emt 00:00:19]} 42. Bc3 {[%clk 00:27:50]} {[%emt 00:01:27]} Bd7 {[%clk
01:13:58]} {[%emt 00:00:52]} 43. Bd2 {[%clk 00:27:37]} {[%emt 00:00:44]} Bf5
{[%clk 01:13:50]} {[%emt 00:00:37]} 44. a4 {[%clk 00:27:39]} {[%emt 00:00:28]}
Bd7 {[%clk 01:13:53]} {[%emt 00:00:27]} 45. a5 {[%clk 00:27:53]} {[%emt
00:00:16]} h5 {[%clk 01:13:50]} {[%emt 00:00:32]} 46. h4 {[%clk 00:27:33]}
{[%emt 00:00:50]} Ba4 {[%clk 01:13:24]} {[%emt 00:00:57]} 47. Kd3 {[%clk
00:26:24]} {[%emt 00:01:39]} Bb5+ {[%clk 01:12:06]} {[%emt 00:01:48]} 48. Ke3
{[%clk 00:25:51]} {[%emt 00:01:02]} Ba4 {[%clk 01:12:12]} {[%emt 00:00:25]} 49.
Be1 {[%clk 00:23:02]} {[%emt 00:03:19]} Bd7 {[%clk 01:12:10]} {[%emt 00:00:32]}
50. Bd2 {[%clk 00:21:22]} {[%emt 00:02:10]} 1/2-1/2